fUST/lending_fUST_20251213
["ID","MTS","AMOUNT","RATE_DAILY","PERIOD"]
[398360183,1765555608122,-313.72046547,0.0001275,9]
[398360185,1765555768100,-5000.0,0.00012623,9]
[398360186,1765555768121,-150.0,0.00012887,2]
[398360187,1765555768141,-250.0,0.000132,7]
[398360188,1765555768163,-1200.0,0.0001327,2]
[398360189,1765555768184,-300.0,0.00013271,2]
[398360190,1765555768204,-300.0,0.00013271,2]
[398360191,1765555768225,-300.0,0.00013271,2]
[398360192,1765555768245,-300.0,0.00013272,2]
[398360193,1765555768265,-500.0,0.00013273,2]
[398360194,1765555768284,-500.0,0.00013273,2]
[398360195,1765555768306,-500.0,0.00013273,2]
[398360196,1765555768329,-295.30641892,0.00013522,2]
[398360197,1765555768350,-3000.0,0.000136,2]
[398360198,1765555768371,-500.0,0.00013699,2]
[398360199,1765555768393,-500.0,0.00013699,2]
[398360200,1765555768416,-500.0,0.00013699,2]
[398360201,1765555768438,-1000.0,0.00013821,2]
[398360202,1765555768459,-1000.0,0.00013821,2]
[398360203,1765555768481,-224.37663368,0.00013953,2]
[398360204,1765555768502,-1000.0,0.00014247,2]
[398360205,1765555768522,-1000.0,0.00014247,2]
[398360206,1765555768543,-1000.0,0.00014247,2]
[398360207,1765555768564,-415.0,0.00014367,2]
[398360208,1765555768584,-1500.0,0.00014368,2]
[398360209,1765555768605,-1500.0,0.00014368,2]
[398360210,1765555768635,-420.0,0.00014551,2]
[398360211,1765555768673,-600.0,0.00014655,2]
[398360212,1765555768696,-1500.0,0.00014795,2]
[398360213,1765555768727,-1500.0,0.00014795,2]
[398360214,1765555768749,-1500.0,0.00014795,2]
[398360215,1765555768770,-9053.40716662,0.00014868,2]
[398360216,1765555768792,-177.0,0.00014887,2]
[398360217,1765555768815,-566.59246832,0.0001489,2]
[398360286,1765555838815,-500.0,0.00013699,2]
[398360287,1765555838825,-500.0,0.00013699,2]
[398360289,1765555838835,-500.0,0.00013699,2]
[398360291,1765555838845,-1000.0,0.00014247,2]
[398360293,1765555838855,-1000.0,0.00014247,2]
[398360295,1765555838865,-1000.0,0.00014247,2]
[398360296,1765555838875,-300.0,0.0001474,2]
[398360298,1765555838885,-236.40085018,0.0001474,2]
[398360299,1765555838894,-500.0,0.0001474,2]
[398360300,1765555838904,-614.15800016,0.0001474,2]
[398360301,1765555838914,-500.0,0.0001474,2]
[398360302,1765555838923,-487.1173251,0.0001474,2]
[398360303,1765555838932,-500.0,0.0001474,2]
[398360304,1765555838942,-17898.38072578,0.00014741,2]
[398360305,1765555838954,-3640.08613463,0.00014741,2]
[398360308,1765555838995,-772.04249589,0.00014741,2]
[398360309,1765555839007,-651.5443167,0.00014741,2]
[398360310,1765555839024,-2420.1853518,0.00014741,2]
[398360311,1765555839036,-282.83175995,0.00014741,2]
[398360312,1765555839051,-16603.22761426,0.00014741,2]
[398360313,1765555839064,-1163.0827225,0.00014741,2]
[398360314,1765555839076,-894.61203176,0.00014741,2]
[398360327,1765555840346,-13528.72652981,0.00014741,2]
[398360328,1765555840463,-12868.99889827,0.00014741,2]
[398360329,1765555840482,-254.22982774,0.00014741,2]
[398360330,1765555840495,-15072.1001,0.00014741,2]
[398360345,1765555843533,-15400.0,0.00014741,2]
[398360347,1765555843626,-963.63518554,0.00014741,2]
[398360374,1765555844023,-60696.79437532,0.00014741,2]
[398360376,1765555844033,-500.0,0.00014795,2]
[398360380,1765555844260,-500.0,0.00014795,2]
[398360381,1765555844285,-500.0,0.00014795,2]
[398360382,1765555844295,-100000.0,0.00014882,2]
[398360383,1765555844306,-213667.32335649,0.0001489,2]
[398360384,1765555844316,-2000.0,0.00014916,2]
[398360385,1765555844326,-2000.0,0.00014916,2]
[398360386,1765555844335,-175.89354136,0.00014968,2]
[398360387,1765555844345,-600.0,0.0001498,2]
[398360388,1765555844356,-600.0,0.00015035,2]
[398360389,1765555844365,-239.819786,0.00015068,2]
[398360390,1765555844375,-500.0,0.00015464,2]
[398360391,1765555844384,-500.0,0.00015464,2]
[398360392,1765555844394,-160.0,0.00016,3]
[398360393,1765555844404,-287.0,0.00016136,2]
[398360394,1765555844413,-500.0,0.00016438,2]
[398360395,1765555844423,-720.0,0.00016538,2]
[398360396,1765555844432,-204.0,0.00016887,2]
[398360397,1765555844441,-1000.0,0.00016986,2]
[398360398,1765555844450,-484.99246635,0.00017534,2]
[398360399,1765555844459,-864.0,0.00018192,2]
[398360400,1765555844468,-574.12855637,0.00018291,2]
[398360401,1765555844479,-250.0,0.00018291,2]
[398360402,1765555844489,-250.0,0.00018291,2]
[398360403,1765555844499,-250.0,0.00018291,2]
[398360404,1765555844509,-250.0,0.00018291,2]
[398360405,1765555844518,-500.0,0.00018291,2]
[398360406,1765555844528,-2773.56790519,0.00018291,2]
[398360407,1765555844537,-250.0,0.00018291,2]
[398360408,1765555844547,-500.0,0.00018291,2]
[398360409,1765555844556,-250.0,0.00018291,2]
[398360410,1765555844565,-255.0,0.00018291,2]
[398360411,1765555844575,-250.0,0.00018291,2]
[398360412,1765555844584,-250.0,0.00018291,2]
[398360413,1765555844594,-250.0,0.00018291,2]
[398360414,1765555844604,-283.08127416,0.00018291,2]
[398360415,1765555844614,-239.819786,0.00018493,2]
[398360416,1765555844624,-595.37131296,0.00018839,2]
[398360417,1765555844633,-255.0,0.00018839,2]
[398360418,1765555844643,-2876.18991768,0.00018839,2]
[398360419,1765555844653,-198.0,0.00018887,2]
[398360420,1765555844661,-302.75782099,0.000189,2]
[398360421,1765555844671,-302.75782099,0.00019089,2]
[398360422,1765555844680,-160.0,0.00019275,2]
[398360423,1765555844689,-302.75782099,0.00019278,2]
[398360424,1765555844699,-617.40005154,0.00019387,2]
[398360425,1765555844708,-255.0,0.00019387,2]
[398360426,1765555844718,-1639.95270787,0.00019387,2]
[398360427,1765555844729,-23616.88,0.000194,2]
[398360428,1765555844738,-302.75782099,0.00019467,2]
[398360429,1765555844749,-302.75782099,0.00019656,2]
[398360430,1765555844758,-260.0,0.00019823,2]
[398360431,1765555844767,-454.13673149,0.00019845,4]
[398360432,1765555844776,-640.24385345,0.00019935,2]
[398360433,1765555844786,-255.0,0.00019935,2]
[398360434,1765555844795,-2000.0,0.0002,7]
[398360435,1765555844806,-1000.0,0.00020011,10]
[398360436,1765555844815,-454.13673149,0.00020034,4]
[398360437,1765555844824,-569.78516604,0.00020223,4]
[398360438,1765555844834,-900.5,0.00020355,10]
[398360439,1765555844843,-360.0,0.00020371,2]
[398360440,1765555844853,-877.91,0.000204,2]
[398360441,1765555844862,-663.93287602,0.00020483,2]
[398360442,1765555844872,-255.0,0.00020483,2]
[398360443,1765555844883,-2000.0,0.00020588,7]
[398360444,1765555844892,-811.5,0.00020685,10]
[398360445,1765555844902,-3060.99999998,0.00020918,3]
[398360446,1765555844912,-460.0,0.00020919,2]
[398360447,1765555844922,-3000.0,0.00021,2]
[398360448,1765555844933,-3000.0,0.0002101,2]
[398360449,1765555844943,-3000.0,0.0002102,2]
[398360450,1765555844954,-3000.0,0.0002103,2]
[398360451,1765555844965,-688.49839244,0.00021031,2]
[398360452,1765555844978,-255.0,0.00021031,2]
[398360453,1765555844989,-2507.97528821,0.0002104,2]
[398360504,1765555846496,-270.24,0.0002104,2]
[398360539,1765556502510,150.0,6.982e-05,2]
[398360549,1765556827119,-500.0,0.00013273,2]
[398360550,1765556827145,-198.90845753,0.00013273,2]
[398360555,1765556947344,-287.0,0.00010999,2]
[398360556,1765556947365,-48713.38989461,0.00011,7]
[398360568,1765557032437,-36625.9692739,0.00011,7]
[398360569,1765557032447,-500.0,0.00013273,2]
[398360570,1765557032457,-500.0,0.00013273,2]
[398360572,1765557032467,-500.0,0.00013273,2]
[398360574,1765557032476,-150.0,0.00013307,2]
[398360576,1765557032486,-6881.5030089,0.00013471,2]
[398360578,1765557032495,-2190.2146,0.00013699,2]
[398360580,1765557032510,-1000.0,0.00013699,2]
[398360582,1765557032520,-1500.0,0.00013699,2]
[398360584,1765557032530,-500.0,0.00013699,2]
[398360586,1765557032539,-500.0,0.00013699,2]
[398360588,1765557032549,-220.7908139,0.0001382,2]
[398360590,1765557032558,-1000.0,0.00013821,2]
[398360592,1765557032567,-1000.0,0.00013821,2]
[398360594,1765557032577,-1000.0,0.00013821,2]
[398360596,1765557032586,-1000.0,0.00014247,2]
[398360598,1765557032595,-1000.0,0.00014247,2]
[398360600,1765557032605,-500.0,0.00014368,2]
[398360602,1765557032614,-1500.0,0.00014368,2]
[398360604,1765557032623,-838.8472506,0.00014368,2]
[398360607,1765557032647,-661.1527494,0.00014368,2]
[398360609,1765557032656,-1430.88041233,0.00014368,2]
[398360612,1765557032667,-69.11958767,0.00014368,2]
[398360613,1765557032676,-165.48059513,0.00014781,2]
[398360616,1765557032685,-24422.08017745,0.00014782,2]
[398360618,1765557032702,-254880.80431116,0.00014782,2]
[398360683,1765557038620,-538.5067473,0.00014782,2]
[398360684,1765557038633,-3068.87568946,0.00014782,2]
[398360685,1765557038645,-337.962,0.00014782,2]
[398360703,1765557041004,-250.0,0.00014782,2]
[398360704,1765557041017,-457.6773912,0.00014782,2]
[398360705,1765557041038,-88879.10687155,0.00014782,2]
[398360721,1765557043666,-52863.14734505,0.00014782,2]
[398360722,1765557043677,-175.89354136,0.00014789,2]
[398360723,1765557043687,-1500.0,0.00014795,2]
[398360724,1765557043697,-1500.0,0.00014795,2]
[398360725,1765557043707,-100000.0,0.00014882,2]
[398360726,1765557043717,-2000.0,0.00014916,2]
[398360727,1765557043728,-325.86554847,0.00014916,2]
[398360728,1765557043739,-2000.0,0.00014916,2]
[398360729,1765557043749,-500.0,0.00014989,2]
[398360730,1765557043759,-500.0,0.00014989,2]
[398360731,1765557043768,-500.0,0.00014989,2]
[398360732,1765557043778,-500.0,0.00014989,2]
[398360734,1765557043787,-500.0,0.00014989,2]
[398360736,1765557043797,-37100.0,0.00015,2]
[398360738,1765557043808,-600.0,0.00015187,2]
[398360739,1765557043818,-415.0,0.00015213,2]
[398360741,1765557043829,-177.0,0.00015307,2]
[398360743,1765557043839,-500.0,0.00015342,2]
[398360744,1765557043849,-1763.79271532,0.00015342,2]
[398360745,1765557043858,-2000.0,0.00015342,2]
[398360746,1765557043868,-2500.0,0.00015464,2]
[398360747,1765557043878,-500.0,0.00015889,2]
[398360748,1765557043889,-500.0,0.00015889,2]
[398360749,1765557043899,-500.0,0.00015889,2]
[398360750,1765557043910,-500.0,0.00015889,2]
[398360751,1765557043919,-500.0,0.00015889,2]
[398360752,1765557043930,-500.0,0.00015889,2]
[398360753,1765557043940,-500.0,0.00015889,2]
[398360754,1765557043950,-500.0,0.00015889,2]
[398360755,1765557043959,-500.0,0.00015889,2]
[398360756,1765557043970,-500.0,0.00015889,2]
[398360757,1765557043980,-500.0,0.00015889,2]
[398360758,1765557043990,-500.0,0.00015889,2]
[398360759,1765557044000,-500.0,0.00015889,2]
[398360761,1765557044011,-500.0,0.00015889,2]
[398360762,1765557044021,-500.0,0.00015889,2]
[398360763,1765557044031,-500.0,0.00015889,2]
[398360764,1765557044041,-168.97291544,0.00015889,2]
[398360765,1765557044052,-2500.0,0.0001589,2]
[398360766,1765557044062,-160.43557243,0.000159,2]
[398360767,1765557044073,-3000.0,0.00016012,2]
[398360768,1765557044083,-160.0,0.00016164,3]
[398360769,1765557044094,-3000.0,0.00016438,2]
[398360770,1765557044104,-181.88,0.0001644,2]
[398360771,1765557044115,-181.88,0.0001644,2]
[398360772,1765557044125,-181.88,0.0001644,2]
[398360773,1765557044137,-181.88,0.0001644,2]
[398360774,1765557044147,-3500.0,0.0001656,2]
[398360775,1765557044157,-720.0,0.00016706,2]
[398360776,1765557044168,-3500.0,0.00016986,2]
[398360777,1765557044179,-22342.7037188,0.00017,2]
[398360778,1765557044189,-4000.0,0.00017108,2]
[398360779,1765557044200,-204.0,0.00017307,2]
[398360780,1765557044210,-4000.0,0.00017534,2]
[398360781,1765557044220,-2128.62842795,0.000176,2]
[398360782,1765557044230,-1596.91878466,0.00017656,2]
[398360783,1765557044240,-528.66867974,0.0001787,2]
[398360784,1765557044250,-28478.63702678,0.00018,2]
[398360789,1765557046591,-53977.68661416,0.0001699,2]
[398360790,1765557046663,-4240.39342338,0.0001699,2]
[398360791,1765557046675,-8985.2643954,0.0001699,2]
[398360812,1765558032098,-152.28,0.0001,2]
[398360813,1765558032125,-152.28,0.00011,2]
[398360814,1765558032147,-150.0,0.000115,2]
[398360815,1765558032170,-152.28,0.00012,2]
[398360816,1765558032190,-166.598701,0.00012929,2]
[398360817,1765558032212,-152.28,0.00013,2]
[398360818,1765558032233,-44.17930608,0.00013215,2]
[398360820,1765558165141,-180.26352479,0.00013215,2]
[398360821,1765558165163,-150.0,0.00013244,2]
[398360822,1765558165185,-325.86554847,0.00013273,2]
[398360823,1765558165208,-500.0,0.00013273,2]
[398360824,1765558165230,-295.30641892,0.00013616,2]
[398360825,1765558165252,-500.0,0.00013698,2]
[398360826,1765558165272,-1200.0,0.00013698,2]
[398360827,1765558165293,-215.0,0.00013698,2]
[398360828,1765558165313,-1200.0,0.00013698,2]
[398360829,1765558165333,-500.0,0.00013699,2]
[398360830,1765558165352,-500.0,0.00013699,2]
[398360831,1765558165374,-300.0,0.00013817,2]
[398360832,1765558165395,-273.0,0.00013817,2]
[398360833,1765558165416,-1000.0,0.00013821,2]
[398360834,1765558165439,-300.0,0.00014096,2]
[398360835,1765558165463,-300.0,0.00014096,2]
[398360836,1765558165489,-300.0,0.00014096,2]
[398360837,1765558165512,-300.0,0.00014096,2]
[398360838,1765558165544,-300.0,0.00014096,2]
[398360839,1765558165574,-300.0,0.00014096,2]
[398360840,1765558165597,-300.0,0.00014096,2]
[398360841,1765558165621,-300.0,0.00014096,2]
[398360842,1765558165648,-300.0,0.00014096,2]
[398360843,1765558165674,-300.0,0.00014096,2]
[398360844,1765558165699,-300.0,0.00014096,2]
[398360845,1765558165724,-300.0,0.00014096,2]
[398360846,1765558165750,-211.81929663,0.00014096,2]
[398360847,1765558172084,-88.18070337,0.00014096,2]
[398360848,1765558172108,-300.0,0.00014096,2]
[398360849,1765558172131,-300.0,0.00014096,2]
[398360850,1765558172152,-1000.0,0.00014247,2]
[398360851,1765558172173,-1000.0,0.00014247,2]
[398360852,1765558172195,-500.0,0.00014368,2]
[398360853,1765558172219,-600.0,0.00014377,2]
[398360854,1765558172245,-8523.05028125,0.00014682,2]
[398360861,1765558232407,-500.0,0.00013273,2]
[398360862,1765558232418,-928.97879449,0.00013821,2]
[398360863,1765558232431,-71.02120551,0.00013821,2]
[398360864,1765558232442,-1500.0,0.00014368,2]
[398360865,1765558232451,-495.31883092,0.00014594,2]
[398360866,1765558232462,-44642.96916829,0.00014682,2]
[398360938,1765558238562,-193.40889886,0.00014681,2]
[398360941,1765558238573,-465.48505297,0.00014681,2]
[398360943,1765558238583,-10293.0684282,0.00014682,2]
[398360945,1765558238596,-4365.2342838,0.00014682,2]
[398360999,1765558240726,-1051.10106375,0.00014682,2]
[398361001,1765558240737,-14891.09803384,0.00014682,2]
[398361004,1765558240750,-1061.69153269,0.00014682,2]
[398361006,1765558240762,-1421.1804627,0.00014682,2]
[398361009,1765558240779,-3360.382956,0.00014682,2]
[398361149,1765558242603,-175555.38431555,0.00014682,2]
[398361151,1765558242616,-1131.12644896,0.00014682,2]
[398361261,1765558243720,-777.17506577,0.00014682,2]
[398361263,1765558243732,-418.93857618,0.00014682,2]
[398361265,1765558243744,-1894.19750275,0.00014682,2]
[398361268,1765558243756,-8865.14604208,0.00014682,2]
[398361271,1765558243783,-1096.40019257,0.00014682,2]
[398361274,1765558243795,-243774.03693095,0.00014682,2]
[398361527,1765558246619,-366877.81871467,0.00014682,2]
[398361528,1765558246628,-500.0,0.00014687,2]
[398361529,1765558246637,-500.0,0.00014781,2]
[398361530,1765558246647,-500.0,0.00014781,2]
[398361531,1765558246656,-500.0,0.00014781,2]
[398361532,1765558246665,-500.0,0.00014781,2]
[398361533,1765558246674,-500.0,0.00014781,2]
[398361534,1765558246683,-500.0,0.00014781,2]
[398361535,1765558246692,-500.0,0.00014781,2]
[398361536,1765558246700,-500.0,0.00014781,2]
[398361537,1765558246709,-500.0,0.00014781,2]
[398361538,1765558246718,-500.0,0.00014781,2]
[398361539,1765558246727,-500.0,0.00014781,2]
[398361540,1765558246736,-500.0,0.00014781,2]
[398361541,1765558246745,-500.0,0.00014781,2]
[398361542,1765558246754,-500.0,0.00014781,2]
[398361543,1765558246763,-500.0,0.00014781,2]
[398361544,1765558246772,-500.0,0.00014781,2]
[398361545,1765558246781,-500.0,0.00014781,2]
[398361546,1765558246789,-500.0,0.00014781,2]
[398361547,1765558246798,-500.0,0.00014781,2]
[398361548,1765558246807,-500.0,0.00014781,2]
[398361549,1765558246816,-500.0,0.00014781,2]
[398361550,1765558246824,-500.0,0.00014781,2]
[398361551,1765558246833,-168.97291544,0.00014781,2]
[398361552,1765558246842,-500.0,0.00014781,2]
[398361553,1765558246850,-500.0,0.00014781,2]
[398361554,1765558246860,-1500.0,0.00014795,2]
[398361555,1765558246869,-97532.80345408,0.00014882,2]
[398361569,1765558922142,-239.10961496,0.00022504,56]
[398361570,1765558922183,-765.72299579,0.00024108,120]
[398361571,1765558922223,-95000.0,0.00024932,30]
[398361572,1765558922263,-962.0944603,0.00025,120]
[398361573,1765558922300,-1097.6275663,0.00025,120]
[398361574,1765558922341,-200.0,0.00025,120]
[398361575,1765558922385,-838.87128387,0.00025,30]
[398361576,1765558922426,-162.33171358,0.00025251,30]
[398361577,1765558922468,-239.10961496,0.00025251,30]
[398361578,1765558922506,-295.30641892,0.000258,30]
[398361579,1765558922541,-729.75188597,0.00026,120]
[398361580,1765558922580,-150.79517714,0.00026056,30]
[398361581,1765558922622,-1000.0,0.00026528,30]
[398361582,1765558922664,-791.0,0.00026528,30]
[398361583,1765558922704,-300.0,0.00027,120]
[398361584,1765558922754,-500.0,0.00028,120]
[398361585,1765558922795,-1002.60499231,0.0002849,120]
[398361586,1765558922836,-752.08603865,0.0002876,120]
[398361587,1765558922875,-239.819786,0.00028767,60]
[398361588,1765558922921,-1000.0,0.00029181,30]
[398361589,1765558922966,-1000.0,0.00029181,30]
[398361590,1765558923005,-500.0,0.00029973,30]
[398361591,1765558923045,-541.77248691,0.00029973,30]
[398361592,1765558923084,-762.0,0.00029973,30]
[398361593,1765558923122,-773176.48135643,0.0003,30]
[398361594,1765558923159,-1071.07506709,0.0003,30]
[398361595,1765558923195,-718.97487991,0.0003,120]
[398361596,1765558923233,-825.84157475,0.0003,30]
[398361597,1765558923271,-729.59102999,0.0003,120]
[398361598,1765558923309,-485.81490251,0.0003,60]
[398361599,1765558923352,-500.0,0.0003,120]
[398361600,1765558923394,-1000.0,0.0003,120]
[398361601,1765558923434,-762.0,0.0003011,30]
[398361602,1765558923471,-10086.54433583,0.00030137,120]
[398361603,1765558923509,-762.0,0.00030247,30]
[398361604,1765558923546,-762.0,0.00030384,30]
[398361605,1765558923583,-762.0,0.00030521,30]
[398361606,1765558923624,-762.0,0.00030658,30]
[398361607,1765558923662,-762.0,0.00030795,30]
[398361608,1765558923697,-762.0,0.00030932,30]
[398361609,1765558923735,-762.0,0.00031069,30]
[398361610,1765558923768,-762.0,0.00031206,30]
[398361611,1765558923803,-762.0,0.00031343,30]
[398361612,1765558923835,-300.0,0.000314,120]
[398361613,1765558923869,-762.0,0.0003148,30]
[398361614,1765558923906,-762.0,0.00031617,30]
[398361615,1765558923946,-500.0,0.00032,120]
[398361616,1765558923985,-1000.0,0.00032,120]
[398361617,1765558924027,-1000.0,0.00032099,30]
[398361618,1765558924069,-1000.0,0.00032099,30]
[398361619,1765558924114,-579.0,0.00032099,30]
[398361620,1765558924156,-1999.0,0.00032876,120]
[398361621,1765558924193,-11263.0,0.000329,120]
[398361622,1765558924232,-557.91,0.0003315,30]
[398361623,1765558924269,-200.0,0.000333,120]
[398361624,1765558924304,-557.91,0.00033972,31]
[398361625,1765558924340,-1241.22485582,0.00033972,120]
[398361626,1765558924377,-500.0,0.00034,120]
[398361627,1765558924411,-1000.0,0.00034,120]
[398361628,1765558924445,-557.91,0.00034794,32]
[398361629,1765558924478,-297.71563987,0.00034849,120]
[398361630,1765558924514,-1000.0,0.00035,90]
[398361631,1765558924550,-1075.88961075,0.00035,120]
[398361632,1765558924589,-384.51640069,0.00035,120]
[398361633,1765558924628,-1010.08,0.000351,30]
[398361634,1765558924822,-1000.0,0.00035309,30]
[398361635,1765558924866,-1000.0,0.00035309,30]
[398361636,1765558924906,-1000.0,0.00035309,30]
[398361637,1765558924944,-557.91,0.00035616,33]
[398361638,1765558924978,-817.83076399,0.00036,120]
[398361639,1765558925014,-500.0,0.00036,120]
[398361640,1765558925051,-1000.0,0.00036,120]
[398361641,1765558925089,-200.0,0.00036391,120]
[398361642,1765558925126,-557.91,0.00036438,34]
[398361643,1765558925161,-694.02882555,0.000365,120]
[398361644,1765558925196,-557.91,0.0003726,35]
[398361645,1765558925231,-200.0,0.000374,120]
[398361646,1765558925275,-876.63966894,0.0003748,30]
[398361647,1765558925312,-200.0,0.00037789,120]
[398361648,1765558925350,-500.0,0.00038,120]
[398361649,1765558925387,-1000.0,0.00038,120]
[398361650,1765558925422,-300.0,0.00038,120]
[398361651,1765558925457,-557.91,0.00038082,36]
[398361652,1765558925494,-520.0706005,0.000387,120]
[398361653,1765558925532,-1000.0,0.0003884,60]
[398361654,1765558925568,-400.0,0.000389,120]
[398361655,1765558925602,-557.91,0.00038904,37]
[398361656,1765558925637,-1010.08,0.00039,30]
[398361657,1765558925673,-174.70562623,0.00039403,120]
[398361658,1765558925712,-557.91,0.00039726,38]
[398361659,1765558925749,-200.0,0.00039954,120]
[398361660,1765558925784,-500.0,0.0004,120]
[398361661,1765558925819,-5081.685,0.0004,90]
[398361662,1765558925857,-600.27597927,0.0004,120]
[398361663,1765558925891,-1000.0,0.0004,120]
[398361664,1765558925925,-1369.0,0.0004,120]
[398361665,1765558925959,-1138.0,0.0004,30]
[398361666,1765558925995,-557.91,0.00040547,39]
[398361667,1765558926033,-1500.0,0.00040547,120]
[398361668,1765558926071,-1500.0,0.00040821,120]
[398361669,1765558926110,-1675.31,0.00041,120]
[398361670,1765558926146,-1225.97608474,0.00041,120]
[398361671,1765558926184,-2000.0,0.00041,120]
[398361673,1765558926219,-1138.0,0.00041,30]
[398361674,1765558926261,-165.0,0.00041,90]
[398361675,1765558926303,-447.0,0.00041,90]
[398361676,1765558926345,-1300.0,0.00041095,60]
[398361677,1765558926386,-6062.91,0.00041095,120]
[398361678,1765558926425,-1252.44645609,0.00041095,60]
[398361679,1765558926464,-500.0,0.00041095,120]
[398361680,1765558926504,-500.0,0.00041095,120]
[398361681,1765558926542,-500.0,0.00041095,120]
[398361682,1765558926584,-500.0,0.00041095,120]
[398361683,1765558926627,-500.0,0.00041095,120]
[398361684,1765558926665,-500.0,0.00041095,120]
[398361685,1765558926702,-500.0,0.00041095,120]
[398361686,1765558926742,-500.0,0.00041095,120]
[398361687,1765558926782,-500.0,0.00041095,120]
[398361688,1765558926820,-500.0,0.00041095,120]
[398361689,1765558926859,-500.0,0.00041095,120]
[398361690,1765558926895,-553.37894118,0.00041095,120]
[398361691,1765558926931,-500.0,0.00041095,120]
[398361692,1765558926969,-500.0,0.00041095,120]
[398361693,1765558927007,-500.0,0.00041095,120]
[398361694,1765558927042,-500.0,0.00041095,120]
[398361695,1765558927080,-500.0,0.00041095,120]
[398361696,1765558927117,-500.0,0.00041095,120]
[398361697,1765558927152,-861.06,0.00041095,120]
[398361698,1765558927185,-500.0,0.00041095,120]
[398361699,1765558927221,-500.0,0.00041095,120]
[398361700,1765558927258,-500.0,0.00041095,120]
[398361701,1765558927293,-500.0,0.00041095,120]
[398361702,1765558927326,-500.0,0.00041095,120]
[398361703,1765558927362,-500.0,0.00041095,120]
[398361704,1765558927399,-500.0,0.00041095,120]
[398361705,1765558927439,-500.9410481,0.00041095,100]
[398361706,1765558927477,-500.0,0.00041095,120]
[398361707,1765558927514,-500.0,0.00041095,120]
[398361708,1765558927549,-572.78,0.00041095,120]
[398361709,1765558927585,-736.94,0.00041095,120]
[398361710,1765558927619,-500.0,0.00041095,120]
[398361711,1765558927653,-500.0,0.00041095,120]
[398361712,1765558927690,-500.0,0.00041095,120]
[398361713,1765558927729,-500.0,0.00041095,120]
[398361714,1765558927764,-500.0,0.00041095,120]
[398361715,1765558927798,-500.0,0.00041095,120]
[398361716,1765558927833,-500.0,0.00041095,120]
[398361717,1765558928137,-500.0,0.00041095,120]
[398361718,1765558928180,-500.0,0.00041095,120]
[398361719,1765558928220,-501.13934696,0.00041095,120]
[398361720,1765558928260,-500.0,0.00041095,120]
[398361721,1765558928298,-718.57,0.00041095,120]
[398361722,1765558928339,-500.0,0.00041095,120]
[398361723,1765558928386,-500.24782154,0.00041095,120]
[398361724,1765558928435,-500.0,0.00041095,120]
[398361725,1765558928480,-500.0,0.00041095,120]
[398361726,1765558928523,-500.0,0.00041095,120]
[398361727,1765558928561,-500.67563551,0.00041095,120]
[398361728,1765558928600,-500.0,0.00041095,120]
[398361729,1765558928646,-979.57,0.00041095,120]
[398361730,1765558928690,-500.0,0.00041095,120]
[398361731,1765558928730,-500.0,0.00041095,120]
[398361732,1765558928773,-500.0,0.00041095,120]
[398361733,1765558928811,-500.0,0.00041095,120]
[398361734,1765558928850,-500.55143451,0.00041095,120]
[398361735,1765558928887,-500.0,0.00041095,120]
[398361736,1765558928924,-500.59447941,0.00041095,120]
[398361737,1765558928962,-500.0,0.00041095,120]
[398361738,1765558929002,-500.0,0.00041095,120]